[Event "1000GM Spring IM-D 2024"]
[Site "New York"]
[Date "2024.03.28"]
[Round "1.1"]
[White "Mou, Iris"]
[Black "Fedorowicz, John"]
[Result "0-1"]
[ECO "B30"]
[WhiteElo "2216"]
[BlackElo "2372"]
[Annotator "RC"]
[PlyCount "110"]
[EventDate "2024.03.26"]
[EventType "schev"]
[EventCountry "USA"]
[SourceTitle "playchess.com"]
[Source "ChessBase"]
[SourceQuality "1"]
[TimeControl "5400+30"]

1. e4 {[%emt 0:00:35]} c5 {[%emt 0:00:58]} 2. Nf3 {[%emt 0:00:11]} Nc6 {[%emt 0:00:47]} 3. Bb5 {[%emt 0:00:27]} e6 {[%emt 0:00:43]} 4. O-O {[%emt 0:00:19]} Nge7 {[%emt 0:00:51]} 5. Re1 {[%emt 0:00:24]} a6 {[%emt 0:00:55]} 6. Bf1 {[%emt 0:00:09]} d5 {[%emt 0:02:40]} 7. exd5 {[%emt 0:07:14]} Qxd5 {[%emt 0:02:48]} 8. Nc3 {[%emt 0:08:31]} Qd8 {[%emt 0:00:11]} 9. Ne4 {[%emt 0:12:17]} Nf5 {[%emt 0:02:42]} 10. b3 {[%emt 0:05:21]} Be7 {[%emt 0:00:51]} 11. Bb2 {[%emt 0:01:31]} O-O {[%emt 0:01:27]} 12. a4 {[%emt 0:06:54]} b6 {[%emt 0:03:55]} 13. Ne5 {[%emt 0:06:30]} Bb7 {[%emt 0:02:54]} 14. Bd3 {[%emt 0:06:48]} Nb4 {[%emt 0:07:17]} 15. Bc4 {[%emt 0:05:39]} Kh8 {[%emt 0:04:35]} 16. Rc1 {[%emt 0:11:23]} f6 {[%emt 0:01:58]} 17. c3 {[%emt 0:07:14]} Nd5 {[%emt 0:01:03]} 18. Nf3 {[%emt 0:00:17]} Qd7 {[%emt 0:02:25]} 19. d4 {[%emt 0:03:44]} cxd4 {[%emt 0:02:22]} 20. Nxd4 {[%emt 0:00:22]} Nxd4 {[%emt 0:00:50]} 21. Qxd4 {[%emt 0:00:19]} Rad8 {[%emt 0:04:16]} 22. Bxd5 {[%emt 0:04:56]} exd5 {[%emt 0:04:11]} 23. Ng3 {[%emt 0:01:50]} Bc5 {[%emt 0:00:22]} 24. Qh4 {[%emt 0:01:46]} Rfe8 {[%emt 0:00:51]} 25. b4 {[%emt 0:02:17]} Bf8 {[%emt 0:00:16]} 26. Qd4 {[%emt 0:00:52]} Qc7 {[%emt 0:01:04]} 27. Nh5 {[%emt 0:02:43]} Re4 {[%emt 0:01:30]} 28. Qd3 {[%emt 0:00:58]} Rde8 {[%emt 0:01:31]} 29. Rf1 {[%emt 0:01:02]} Qc6 {[%emt 0:03:51]} 30. Ng3 {[%emt 0:00:24]} Rc4 {[%emt 0:00:45]} 31. Nf5 {[%emt 0:02:03]} d4 {[%emt 0:01:54]} 32. Qg3 {[%emt 0:00:08]} dxc3 {[%emt 0:00:26]} 33. Rxc3 {[%emt 0:00:35]} Rxc3 {[%emt 0:00:15]} 34. Bxc3 {[%emt 0:00:04]} Qd7 {[%emt 0:02:53]} 35. Nd4 {[%emt 0:01:25]} Re4 {[%emt 0:00:33]} 36. h3 {[%emt 0:00:42]} Re5 {[%emt 0:01:50]} 37. Nf3 {[%emt 0:00:26]} Re8 {[%emt 0:00:14]} 38. Nd4 {[%emt 0:00:26]} Kg8 {[%emt 0:06:21]} 39. a5 {[%emt 0:00:33]} bxa5 {[%emt 0:01:41]} 40. bxa5 {[%emt 0:00:05]} Re5 {[%emt 0:01:49]} 41. Nf3 {[%emt 0:00:55]} Rf5 {[%emt 0:00:08]} 42. Nh4 {[%emt 0:00:26]} Rg5 {[%emt 0:00:31]} 43. Qe3 {[%emt 0:00:38]} Qd5 {[%emt 0:00:30]} 44. Nf3 {[%emt 0:00:33]} Qxf3 {[%emt 0:00:35]} 45. Qxg5 {[%emt 0:00:21]} Qxc3 {[%emt 0:00:05]} 46. Qf5 {[%emt 0:00:15]} Qc6 {[%emt 0:00:19]} 47. f3 {[%emt 0:00:31]} g6 {[%emt 0:01:20]} 48. Qd3 {[%emt 0:00:16]} Qc5+ {[%emt 0:00:24]} 49. Kh1 {[%emt 0:00:16]} Qxa5 {[%emt 0:00:57]} 50. Rd1 {[%emt 0:00:38]} Qc7 {[%emt 0:01:24]} 51. Qb3+ {[%emt 0:00:21]} Kg7 {[%emt 0:00:08]} 52. Rb1 {[%emt 0:00:57]} Bc8 {[%emt 0:00:18]} 53. Qe3 {[%emt 0:00:43]} Qe5 {[%emt 0:01:55]} 54. Qa7+ {[%emt 0:00:38]} Kh6 {[%emt 0:00:07]} 55. Qb6 {[%emt 0:00:37]} Bd6 {[%emt 0:00:17]} 0-1

[Event "1000GM Spring IM-D 2024"]
[Site "New York"]
[Date "2024.03.28"]
[Round "1.2"]
[White "Yoo, Eugene"]
[Black "Jakovljevic, Vlado"]
[Result "1-0"]
[ECO "D30"]
[WhiteElo "2205"]
[BlackElo "2356"]
[Annotator "RC"]
[PlyCount "55"]
[EventDate "2024.03.26"]
[EventType "schev"]
[EventCountry "USA"]
[SourceTitle "playchess.com"]
[Source "ChessBase"]
[SourceQuality "1"]
[TimeControl "5400+30"]

1. d4 {[%emt 0:00:29]} d5 {[%emt 0:00:24]} 2. c4 {[%emt 0:00:18]} c6 {[%emt 0:00:49]} 3. Nf3 {[%emt 0:00:31]} Nf6 {[%emt 0:00:17]} 4. e3 {[%emt 0:00:25]} e6 {[%emt 0:01:35]} 5. Nbd2 {[%emt 0:00:32]} Be7 {[%emt 0:04:23]} 6. b3 {[%emt 0:01:07]} Nbd7 {[%emt 0:03:42]} 7. Bd3 {[%emt 0:00:28]} b6 {[%emt 0:02:08]} 8. Bb2 {[%emt 0:02:47]} Bb7 {[%emt 0:01:05]} 9. O-O {[%emt 0:00:05]} O-O {[%emt 0:00:47]} 10. Qe2 {[%emt 0:00:07]} Rc8 {[%emt 0:19:41]} 11. Rfd1 {[%emt 0:00:28]} Qc7 {[%emt 0:00:21]} 12. Rac1 {[%emt 0:09:07]} Qb8 {[%emt 0:04:03]} 13. Ne5 {[%emt 0:09:58]} Nxe5 {[%emt 0:33:23]} 14. dxe5 {[%emt 0:00:04]} Nd7 {[%emt 0:00:02]} 15. f4 {[%emt 0:08:09]} f6 {[%emt 0:03:07]} 16. Nf3 {[%emt 0:08:15]} Nc5 {[%emt 0:13:08]} 17. Bb1 {[%emt 0:05:43]} dxc4 {[%emt 0:00:23]} 18. Qxc4 {[%emt 0:04:44]} a5 {[%emt 0:02:00]} 19. exf6 {[%emt 0:13:30]} gxf6 {[%emt 0:00:01]} 20. f5 {[%emt 0:09:11]} Ba6 {[%emt 0:07:03]} 21. Qg4+ {[%emt 0:07:53]} Kh8 {[%emt 0:00:22]} 22. fxe6 {[%emt 0:00:15]} Rg8 {[%emt 0:00:48]} 23. Qh4 {[%emt 0:02:01]} Rg7 {[%emt 0:00:13]} 24. Ng5 {[%emt 0:00:33]} Bd3 {[%emt 0:02:12]} 25. Rxd3 {[%emt 0:02:13]} Nxd3 {[%emt 0:00:32]} 26. Bxd3 {[%emt 0:00:20]} Qd6 {[%emt 0:00:19]} 27. Nf7+ {[%emt 0:00:41]} Rxf7 {[%emt 0:00:07]} 28. exf7 {[%emt 0:00:10]} 1-0

[Event "1000GM Spring IM-D 2024"]
[Site "New York"]
[Date "2024.03.28"]
[Round "1.3"]
[White "Gaw, Chloe"]
[Black "Lapshun, Yury"]
[Result "0-1"]
[ECO "A52"]
[WhiteElo "2092"]
[BlackElo "2332"]
[Annotator "RC"]
[PlyCount "52"]
[EventDate "2024.03.26"]
[EventType "schev"]
[EventCountry "USA"]
[SourceTitle "playchess.com"]
[Source "ChessBase"]
[SourceQuality "1"]
[TimeControl "5400+30"]

1. d4 {[%emt 0:00:03]} Nf6 {[%emt 0:28:29]} 2. c4 {[%emt 0:00:03]} e5 {[%emt 0:00:09]} 3. dxe5 {[%emt 0:00:07]} Ng4 {[%emt 0:00:03]} 4. Nf3 {[%emt 0:00:09]} Bc5 {[%emt 0:00:47]} 5. e3 {[%emt 0:00:14]} Nc6 {[%emt 0:00:05]} 6. a3 {[%emt 0:01:51]} a5 {[%emt 0:00:05]} 7. b3 {[%emt 0:01:43]} O-O {[%emt 0:00:53]} 8. Bb2 {[%emt 0:00:34]} Re8 {[%emt 0:00:11]} 9. Nbd2 {[%emt 0:01:49]} d6 {[%emt 0:03:48]} 10. Qc2 {[%emt 0:03:10]} Ncxe5 {[%emt 0:00:57]} 11. Nxe5 {[%emt 0:14:39]} dxe5 {[%emt 0:00:32]} 12. h3 {[%emt 0:03:01]} Nxe3 {[%emt 0:07:51]} 13. fxe3 {[%emt 0:02:44]} Qh4+ {[%emt 0:00:06]} 14. Kd1 {[%emt 0:07:46]} Bxe3 {[%emt 0:13:07]} 15. Qe4 {[%emt 0:03:42]} Qf2 {[%emt 0:01:33]} 16. Be2 {[%emt 0:01:57]} Rd8 {[%emt 0:04:01]} 17. Bc3 {[%emt 0:02:17]} Bxd2 {[%emt 0:00:57]} 18. Bxd2 {[%emt 0:00:54]} Bf5 {[%emt 0:00:41]} 19. Qf3 {[%emt 0:12:43]} Qd4 {[%emt 0:00:17]} 20. Ra2 {[%emt 0:01:59]} Bb1 {[%emt 0:00:24]} 21. Kc1 {[%emt 0:06:59]} Bxa2 {[%emt 0:00:19]} 22. Bc3 {[%emt 0:03:39]} Qb6 {[%emt 0:00:26]} 23. Bxe5 {[%emt 0:10:46]} Qxb3 {[%emt 0:01:09]} 24. Qe4 {[%emt 0:02:39]} Bb1 {[%emt 0:00:46]} 25. Qxb1 {[%emt 0:01:45]} Qe3+ {[%emt 0:00:08]} 26. Kb2 {[%emt 0:01:40]} Rd2+ {[%emt 0:00:17]} 0-1

[Event "1000GM Spring IM-D 2024"]
[Site "New York"]
[Date "2024.03.28"]
[Round "1.4"]
[White "Espinosa, Pedro"]
[Black "Rohde, Michael"]
[Result "0-1"]
[ECO "E61"]
[WhiteElo "2229"]
[BlackElo "2318"]
[Annotator "RC"]
[PlyCount "138"]
[EventDate "2024.03.26"]
[EventType "schev"]
[EventCountry "USA"]
[SourceTitle "playchess.com"]
[Source "ChessBase"]
[SourceQuality "1"]
[TimeControl "5400+30"]

1. d4 {[%emt 0:00:02]} Nf6 {[%emt 0:00:05]} 2. c4 {[%emt 0:00:08]} d6 {[%emt 0:00:06]} 3. Nf3 {[%emt 0:01:02]} g6 {[%emt 0:00:19]} 4. Nc3 {[%emt 0:00:53]} Bf5 {[%emt 0:00:08]} 5. d5 {[%emt 0:02:24]} Bg7 {[%emt 0:01:06]} 6. Nd4 {[%emt 0:01:55]} Bd7 {[%emt 0:00:57]} 7. e4 {[%emt 0:02:19]} O-O {[%emt 0:00:42]} 8. Be2 {[%emt 0:04:45]} Na6 {[%emt 0:00:55]} 9. O-O {[%emt 0:05:41]} Nc5 {[%emt 0:00:22]} 10. Bf3 {[%emt 0:04:05]} a5 {[%emt 0:03:58]} 11. Be3 {[%emt 0:02:58]} e5 {[%emt 0:07:32]} 12. Ndb5 {[%emt 0:09:44]} Ne8 {[%emt 0:02:52]} 13. a3 {[%emt 0:05:16]} f5 {[%emt 0:00:50]} 14. b4 {[%emt 0:06:57]} axb4 {[%emt 0:01:34]} 15. axb4 {[%emt 0:01:04]} Rxa1 {[%emt 0:01:05]} 16. Qxa1 {[%emt 0:01:26]} Na6 {[%emt 0:00:27]} 17. c5 {[%emt 0:10:48]} f4 {[%emt 0:04:35]} 18. Bc1 {[%emt 0:03:01]} Nxb4 {[%emt 0:01:06]} 19. cxd6 {[%emt 0:03:45]} Nxd6 {[%emt 0:03:55]} 20. Qa5 {[%emt 0:05:43]} Nc2 {[%emt 0:02:29]} 21. Nxc7 {[%emt 0:05:51]} Nd4 {[%emt 0:01:22]} 22. Kh1 {[%emt 0:07:31]} Nxf3 {[%emt 0:09:54]} 23. gxf3 {[%emt 0:00:09]} Qh4 {[%emt 0:15:00]} 24. Ne6 {[%emt 0:03:18]} Qh3 {[%emt 0:03:41]} 25. Kg1 {[%emt 0:01:55]} Qxf3 {[%emt 0:00:38]} 26. Qc7 {[%emt 0:01:00]} Bxe6 {[%emt 0:16:18]} 27. dxe6 {[%emt 0:00:09]} Qg4+ {[%emt 0:00:14]} 28. Kh1 {[%emt 0:00:22]} Qxe6 {[%emt 0:00:48]} 29. Ba3 {[%emt 0:10:49]} Rc8 {[%emt 0:06:57]} 30. Qxd6 {[%emt 0:00:00]} Qxd6 {[%emt 0:00:13]} 31. Bxd6 {[%emt 0:00:00]} Rxc3 {[%emt 0:00:03]} 32. Rb1 {[%emt 0:00:00]} f3 {[%emt 0:05:53]} 33. h3 {[%emt 0:00:00]} Rc4 {[%emt 0:02:29]} 34. Rxb7 {[%emt 0:00:00]} Rxe4 {[%emt 0:00:08]} 35. Rb3 {[%emt 0:00:00]} Re1+ {[%emt 0:01:24]} 36. Kh2 {[%emt 0:00:00]} e4 {[%emt 0:00:17]} 37. Rb8+ {[%emt 0:00:00]} Kf7 {[%emt 0:00:05]} 38. Rb7+ {[%emt 0:00:00]} Kf6 {[%emt 0:01:58]} 39. Bb4 {[%emt 0:00:00]} Rc1 {[%emt 0:01:09]} 40. Ba3 {[%emt 0:00:29]} Rc2 {[%emt 0:00:17]} 41. Kg3 {[%emt 0:00:41]} Bh6 {[%emt 0:00:56]} 42. Rxh7 {[%emt 0:00:40]} Bd2 {[%emt 0:00:43]} 43. Rb7 {[%emt 0:01:51]} g5 {[%emt 0:03:00]} 44. Rb6+ {[%emt 0:00:39]} Kf7 {[%emt 0:00:39]} 45. Rb7+ {[%emt 0:01:17]} Ke6 {[%emt 0:00:45]} 46. Rb6+ {[%emt 0:01:36]} Kd5 {[%emt 0:00:48]} 47. Rb5+ {[%emt 0:01:03]} Kc6 {[%emt 0:00:26]} 48. Rb2 {[%emt 0:00:19]} Rxb2 {[%emt 0:01:53]} 49. Bxb2 {[%emt 0:00:04]} Kd5 {[%emt 0:00:03]} 50. Kh2 {[%emt 0:00:47]} Bf4+ {[%emt 0:00:41]} 51. Kg1 {[%emt 0:00:24]} Ke6 {[%emt 0:00:02]} 52. Ba3 {[%emt 0:01:05]} Kf6 {[%emt 0:00:13]} 53. Bc5 {[%emt 0:00:18]} Kg6 {[%emt 0:00:10]} 54. Be7 {[%emt 0:00:29]} Kh5 {[%emt 0:00:06]} 55. Bd8 {[%emt 0:00:46]} Kh4 {[%emt 0:00:08]} 56. Bb6 {[%emt 0:00:25]} Kxh3 {[%emt 0:00:06]} 57. Kh1 {[%emt 0:00:19]} g4 {[%emt 0:00:07]} 58. Kg1 {[%emt 0:00:21]} Bg5 {[%emt 0:00:37]} 59. Bd4 {[%emt 0:00:14]} Bf4 {[%emt 0:01:06]} 60. Bb6 {[%emt 0:00:18]} g3 {[%emt 0:00:39]} 61. fxg3 {[%emt 0:00:08]} Kxg3 {[%emt 0:00:15]} 62. Kh1 {[%emt 0:00:20]} Kg4 {[%emt 0:01:05]} 63. Bc5 {[%emt 0:00:46]} e3 {[%emt 0:00:14]} 64. Bd4 {[%emt 0:00:17]} e2 {[%emt 0:00:16]} 65. Bf2 {[%emt 0:00:09]} Bg3 {[%emt 0:00:23]} 66. Bg1 {[%emt 0:00:03]} f2 {[%emt 0:00:30]} 67. Bxf2 {[%emt 0:00:10]} Bxf2 {[%emt 0:00:04]} 68. Kh2 {[%emt 0:00:06]} e1=Q {[%emt 0:00:12]} 69. Kg2 {[%emt 0:00:05]} Qg1# {[%emt 0:01:13]} 0-1

[Event "1000GM Spring IM-D 2024"]
[Site "New York"]
[Date "2024.03.28"]
[Round "1.5"]
[White "Polyik, Peter"]
[Black "Ho, Carter"]
[Result "1-0"]
[ECO "A07"]
[WhiteElo "2295"]
[BlackElo "2108"]
[Annotator "RC"]
[PlyCount "55"]
[EventDate "2024.03.26"]
[EventType "schev"]
[EventCountry "USA"]
[SourceTitle "playchess.com"]
[Source "ChessBase"]
[SourceQuality "1"]
[TimeControl "5400+30"]

1. Nf3 {[%emt 0:00:05]} d5 {[%emt 0:00:15]} 2. g3 {[%emt 0:00:07]} g6 {[%emt 0:00:14]} 3. Bg2 {[%emt 0:00:29]} Bg7 {[%emt 0:00:09]} 4. c4 {[%emt 0:01:03]} dxc4 {[%emt 0:00:28]} 5. Qa4+ {[%emt 0:05:19]} Nc6 {[%emt 0:03:00]} 6. O-O {[%emt 0:00:52]} e5 {[%emt 0:02:01]} 7. Qxc4 {[%emt 0:12:28]} Nge7 {[%emt 0:10:38]} 8. d3 {[%emt 0:00:35]} O-O {[%emt 0:00:59]} 9. Nc3 {[%emt 0:01:57]} Be6 {[%emt 0:14:47]} 10. Qa4 {[%emt 0:01:32]} h6 {[%emt 0:13:34]} 11. Bd2 {[%emt 0:11:57]} Qd7 {[%emt 0:10:24]} 12. Ne4 {[%emt 0:16:35]} b6 {[%emt 0:08:14]} 13. Bxh6 {[%emt 0:02:44]} f5 {[%emt 0:00:22]} 14. Bxg7 {[%emt 0:00:17]} fxe4 {[%emt 0:00:24]} 15. Bxf8 {[%emt 0:02:50]} exf3 {[%emt 0:00:32]} 16. Bxe7 {[%emt 0:00:08]} fxg2 {[%emt 0:00:11]} 17. Rfc1 {[%emt 0:00:14]} Nxe7 {[%emt 0:03:44]} 18. Qxd7 {[%emt 0:00:09]} Bxd7 {[%emt 0:00:10]} 19. Rxc7 {[%emt 0:00:06]} Rd8 {[%emt 0:00:25]} 20. Kxg2 {[%emt 0:01:47]} Nc6 {[%emt 0:01:51]} 21. Kf1 {[%emt 0:06:44]} Nd4 {[%emt 0:00:36]} 22. Rac1 {[%emt 0:02:42]} e4 {[%emt 0:05:59]} 23. dxe4 {[%emt 0:02:09]} Bb5 {[%emt 0:00:07]} 24. Rc8 {[%emt 0:00:29]} Rxc8 {[%emt 0:00:51]} 25. Rxc8+ {[%emt 0:00:05]} Kf7 {[%emt 0:00:08]} 26. Rc7+ {[%emt 0:02:54]} Ke6 {[%emt 0:00:07]} 27. f4 {[%emt 0:01:44]} Bxe2+ {[%emt 0:00:21]} 28. Kf2 {[%emt 0:00:05]} 1-0

[Event "1000GM Spring IM-D 2024"]
[Site "New York"]
[Date "2024.03.28"]
[Round "1.6"]
[White "Urhegyi, Marton"]
[Black "Ho, Cooper"]
[Result "1/2-1/2"]
[ECO "B33"]
[WhiteElo "2258"]
[BlackElo "2004"]
[Annotator "RC"]
[PlyCount "153"]
[EventDate "2024.03.26"]
[EventType "schev"]
[EventCountry "USA"]
[SourceTitle "playchess.com"]
[Source "ChessBase"]
[SourceQuality "1"]
[TimeControl "5400+30"]

1. e4 {[%emt 0:00:05]} c5 {[%emt 0:00:15]} 2. Nf3 {[%emt 0:00:09]} e6 {[%emt 0:00:07]} 3. d4 {[%emt 0:00:07]} cxd4 {[%emt 0:00:06]} 4. Nxd4 {[%emt 0:00:06]} Nf6 {[%emt 0:00:14]} 5. Nc3 {[%emt 0:00:18]} Nc6 {[%emt 0:00:09]} 6. Ndb5 {[%emt 0:00:24]} d6 {[%emt 0:00:09]} 7. Bf4 {[%emt 0:00:19]} e5 {[%emt 0:00:07]} 8. Bg5 {[%emt 0:00:06]} a6 {[%emt 0:00:06]} 9. Na3 {[%emt 0:00:09]} b5 {[%emt 0:00:12]} 10. Nd5 {[%emt 0:00:15]} Be7 {[%emt 0:00:06]} 11. Bxf6 {[%emt 0:00:08]} Bxf6 {[%emt 0:00:07]} 12. c3 {[%emt 0:00:11]} Rb8 {[%emt 0:00:05]} 13. Nc2 {[%emt 0:01:48]} Bg5 {[%emt 0:00:17]} 14. a4 {[%emt 0:03:22]} bxa4 {[%emt 0:00:06]} 15. Ncb4 {[%emt 0:01:11]} Nxb4 {[%emt 0:00:09]} 16. Nxb4 {[%emt 0:00:26]} Bd7 {[%emt 0:00:09]} 17. Bxa6 {[%emt 0:10:27]} O-O {[%emt 0:00:19]} 18. O-O {[%emt 0:02:42]} Kh8 {[%emt 0:10:04]} 19. Qxd6 {[%emt 0:12:06]} Be7 {[%emt 0:05:09]} 20. Qxe5 {[%emt 0:04:10]} Bxb4 {[%emt 0:07:53]} 21. cxb4 {[%emt 0:00:14]} Qb6 {[%emt 0:05:19]} 22. b5 {[%emt 0:11:59]} Rfe8 {[%emt 0:11:57]} 23. Qd5 {[%emt 0:04:22]} Bxb5 {[%emt 0:02:36]} 24. Bxb5 {[%emt 0:00:07]} Qxb5 {[%emt 0:00:05]} 25. Qxb5 {[%emt 0:02:18]} Rxb5 {[%emt 0:00:07]} 26. Rxa4 {[%emt 0:00:52]} Rxb2 {[%emt 0:00:08]} 27. Rfa1 {[%emt 0:08:46]} g6 {[%emt 0:10:57]} 28. f3 {[%emt 0:06:59]} Kg7 {[%emt 0:02:30]} 29. R1a2 {[%emt 0:02:03]} Reb8 {[%emt 0:01:43]} 30. Ra7 {[%emt 0:02:47]} h5 {[%emt 0:08:12]} 31. e5 {[%emt 0:06:47]} Rxa2 {[%emt 0:03:37]} 32. Rxa2 {[%emt 0:01:15]} g5 {[%emt 0:06:55]} 33. h4 {[%emt 0:06:36]} Rb5 {[%emt 0:04:47]} 34. Re2 {[%emt 0:04:33]} gxh4 {[%emt 0:00:54]} 35. Kh2 {[%emt 0:02:00]} Kg6 {[%emt 0:05:45]} 36. Kh3 {[%emt 0:01:33]} Kg5 {[%emt 0:01:02]} 37. Re4 {[%emt 0:01:40]} Rb1 {[%emt 0:01:04]} 38. Kh2 {[%emt 0:00:24]} Rb5 {[%emt 0:01:28]} 39. Ra4 {[%emt 0:01:30]} Rc5 {[%emt 0:01:05]} 40. Kh3 {[%emt 0:00:53]} Rc1 {[%emt 0:03:25]} 41. Kh2 {[%emt 0:02:14]} Rc5 {[%emt 0:00:14]} 42. Rb4 {[%emt 0:01:56]} Ra5 {[%emt 0:00:18]} 43. Kh3 {[%emt 0:00:43]} Ra1 {[%emt 0:00:13]} 44. Kh2 {[%emt 0:00:32]} Ra5 {[%emt 0:02:39]} 45. Rb7 {[%emt 0:00:27]} Rxe5 {[%emt 0:00:54]} 46. Rxf7 {[%emt 0:00:06]} Re1 {[%emt 0:00:11]} 47. Ra7 {[%emt 0:00:19]} Rf1 {[%emt 0:00:47]} 48. Ra5+ {[%emt 0:00:27]} Kg6 {[%emt 0:00:11]} 49. Re5 {[%emt 0:00:15]} Rb1 {[%emt 0:00:29]} 50. Rc5 {[%emt 0:00:51]} Rf1 {[%emt 0:00:17]} 51. Rb5 {[%emt 0:00:18]} Rd1 {[%emt 0:00:19]} 52. Rb2 {[%emt 0:00:24]} Kg5 {[%emt 0:00:23]} 53. Rf2 {[%emt 0:00:27]} Kf4 {[%emt 0:00:25]} 54. Ra2 {[%emt 0:00:37]} Kg5 {[%emt 0:00:13]} 55. Ra5+ {[%emt 0:00:20]} Kg6 {[%emt 0:00:08]} 56. g3 {[%emt 0:00:39]} hxg3+ {[%emt 0:01:55]} 57. Kxg3 {[%emt 0:00:01]} Rf1 {[%emt 0:01:18]} 58. Kf4 {[%emt 0:00:19]} h4 {[%emt 0:02:36]} 59. Rg5+ {[%emt 0:00:51]} Kf6 {[%emt 0:01:02]} 60. Rh5 {[%emt 0:00:40]} Rh1 {[%emt 0:00:22]} 61. Rh6+ {[%emt 0:00:33]} Kg7 {[%emt 0:00:26]} 62. Ra6 {[%emt 0:00:05]} h3 {[%emt 0:01:33]} 63. Kg3 {[%emt 0:00:27]} Kf7 {[%emt 0:00:57]} 64. Rh6 {[%emt 0:00:22]} Kg7 {[%emt 0:01:28]} 65. Rxh3 {[%emt 0:00:11]} Rxh3+ {[%emt 0:00:36]} 66. Kxh3 {[%emt 0:00:01]} Kf6 {[%emt 0:00:15]} 67. Kg4 {[%emt 0:00:17]} Kg6 {[%emt 0:00:07]} 68. f4 {[%emt 0:00:03]} Kf6 {[%emt 0:00:05]} 69. f5 {[%emt 0:00:02]} Kf7 {[%emt 0:00:06]} 70. Kf4 {[%emt 0:00:06]} Kf6 {[%emt 0:00:05]} 71. Ke4 {[%emt 0:00:03]} Kf7 {[%emt 0:00:06]} 72. Ke5 {[%emt 0:00:03]} Ke7 {[%emt 0:00:05]} 73. f6+ {[%emt 0:00:04]} Kf7 {[%emt 0:00:04]} 74. Kf5 {[%emt 0:00:03]} Kf8 {[%emt 0:00:06]} 75. Kg6 {[%emt 0:00:05]} Kg8 {[%emt 0:00:03]} 76. f7+ {[%emt 0:00:03]} Kf8 {[%emt 0:00:04]} 77. Kf6 {[%emt 0:07:59]} 1/2-1/2

[Event "1000GM Spring IM-D 2024"]
[Site "New York"]
[Date "2024.03.28"]
[Round "1.7"]
[White "Zaderman, Vitaly"]
[Black "Cherukuri, Nitesh"]
[Result "0-1"]
[ECO "A65"]
[WhiteElo "2177"]
[BlackElo "2000"]
[Annotator "RC"]
[PlyCount "85"]
[EventDate "2024.03.26"]
[EventType "schev"]
[EventCountry "USA"]
[SourceTitle "playchess.com"]
[Source "ChessBase"]
[SourceQuality "1"]
[TimeControl "5400+30"]

1. d4 {[%emt 0:00:05]} Nf6 {[%emt 0:00:27]} 2. c4 {[%emt 0:00:06]} g6 {[%emt 0:00:03]} 3. Nc3 {[%emt 0:00:08]} Bg7 {[%emt 0:00:05]} 4. e4 {[%emt 0:00:06]} d6 {[%emt 0:00:03]} 5. f3 {[%emt 0:00:33]} O-O {[%emt 0:00:08]} 6. Bd3 {[%emt 0:00:15]} c5 {[%emt 0:03:41]} 7. d5 {[%emt 0:02:23]} e6 {[%emt 0:00:41]} 8. Nge2 {[%emt 0:00:19]} exd5 {[%emt 0:00:22]} 9. cxd5 {[%emt 0:00:19]} a6 {[%emt 0:01:29]} 10. a4 {[%emt 0:00:22]} Nbd7 {[%emt 0:01:10]} 11. Ng3 {[%emt 0:02:56]} h5 {[%emt 0:05:09]} 12. Bg5 {[%emt 0:01:06]} Ne5 {[%emt 0:03:11]} 13. Be2 {[%emt 0:00:16]} Qb6 {[%emt 0:11:04]} 14. Qc1 {[%emt 0:01:14]} Nh7 {[%emt 0:03:04]} 15. a5 {[%emt 0:00:35]} Qc7 {[%emt 0:00:14]} 16. Bh6 {[%emt 0:00:31]} b5 {[%emt 0:04:40]} 17. axb6 {[%emt 0:00:55]} Qxb6 {[%emt 0:00:27]} 18. Bxg7 {[%emt 0:00:19]} Kxg7 {[%emt 0:00:03]} 19. f4 {[%emt 0:03:13]} Ng4 {[%emt 0:01:26]} 20. h3 {[%emt 0:00:12]} Ngf6 {[%emt 0:01:08]} 21. O-O {[%emt 0:00:22]} Re8 {[%emt 0:03:46]} 22. Bf3 {[%emt 0:01:04]} Rb8 {[%emt 0:01:27]} 23. Qe3 {[%emt 0:04:46]} Bb7 {[%emt 0:18:31]} 24. Rf2 {[%emt 0:00:51]} Qb3 {[%emt 0:06:13]} 25. Qd2 {[%emt 0:06:56]} Nf8 {[%emt 0:05:18]} 26. Nf1 {[%emt 0:03:00]} N8d7 {[%emt 0:01:27]} 27. Ra3 {[%emt 0:02:32]} Qb4 {[%emt 0:02:07]} 28. Ra4 {[%emt 0:00:16]} Qb6 {[%emt 0:02:06]} 29. Ne3 {[%emt 0:00:21]} Qc7 {[%emt 0:00:49]} 30. b3 {[%emt 0:09:01]} Bc8 {[%emt 0:02:25]} 31. Nc4 {[%emt 0:01:33]} Rxb3 {[%emt 0:06:13]} 32. e5 {[%emt 0:00:46]} dxe5 {[%emt 0:00:12]} 33. d6 {[%emt 0:00:10]} Qb8 {[%emt 0:00:47]} 34. Bc6 {[%emt 0:02:22]} e4 {[%emt 0:03:27]} 35. f5 {[%emt 0:01:34]} Bb7 {[%emt 0:02:12]} 36. Bxd7 {[%emt 0:57:03]} Nxd7 {[%emt 0:12:55]} 37. Nd5 {[%emt 0:00:00]} Bxd5 {[%emt 0:00:00]} 38. Qxd5 {[%emt 0:00:00]} Rd3 {[%emt 0:00:00]} 39. Qc6 {[%emt 0:00:00]} e3 {[%emt 0:00:00]} 40. f6+ {[%emt 0:00:00]} Nxf6 {[%emt 0:00:00]} 41. Rxf6 {[%emt 0:00:00]} Kxf6 {[%emt 0:00:00]} 42. d7+ {[%emt 0:00:00]} Re6 {[%emt 0:00:00]} 43. Qf3+ {[%emt 0:00:00]} 0-1

[Event "1000GM Spring IM-D 2024"]
[Site "New York"]
[Date "2024.03.28"]
[Round "1.8"]
[White "Khodzhamkuliev, Bahadur"]
[Black "Shangin, Lev"]
[Result "1/2-1/2"]
[ECO "D24"]
[WhiteElo "2159"]
[BlackElo "1994"]
[Annotator "RC"]
[PlyCount "54"]
[EventDate "2024.03.26"]
[EventType "schev"]
[EventCountry "USA"]
[SourceTitle "playchess.com"]
[Source "ChessBase"]
[SourceQuality "1"]
[TimeControl "5400+30"]

1. Nf3 {[%emt 0:00:15]} Nf6 {[%emt 0:00:24]} 2. d4 {[%emt 0:00:05]} d5 {[%emt 0:00:46]} 3. c4 {[%emt 0:00:14]} e6 {[%emt 0:00:13]} 4. Nc3 {[%emt 0:00:10]} dxc4 {[%emt 0:00:47]} 5. Bg5 {[%emt 0:02:19]} a6 {[%emt 0:00:57]} 6. a4 {[%emt 0:01:22]} Nc6 {[%emt 0:03:38]} 7. e4 {[%emt 0:05:55]} Na5 {[%emt 0:05:51]} 8. e5 {[%emt 0:09:08]} h6 {[%emt 0:01:15]} 9. Bh4 {[%emt 0:01:36]} g5 {[%emt 0:01:18]} 10. Nxg5 {[%emt 0:00:18]} hxg5 {[%emt 0:01:01]} 11. Bxg5 {[%emt 0:00:04]} Be7 {[%emt 0:02:45]} 12. exf6 {[%emt 0:00:47]} Bxf6 {[%emt 0:04:06]} 13. Bxf6 {[%emt 0:00:53]} Qxf6 {[%emt 0:00:06]} 14. Ne4 {[%emt 0:08:24]} Qf4 {[%emt 0:04:00]} 15. Qe2 {[%emt 0:04:59]} Bd7 {[%emt 0:10:38]} 16. g3 {[%emt 0:05:18]} Qf5 {[%emt 0:04:39]} 17. Bg2 {[%emt 0:05:39]} Bc6 {[%emt 0:03:58]} 18. O-O {[%emt 0:10:20]} O-O-O {[%emt 0:04:30]} 19. Qe3 {[%emt 0:01:52]} Nb3 {[%emt 0:06:25]} 20. Rad1 {[%emt 0:03:01]} Bxe4 {[%emt 0:01:09]} 21. Bxe4 {[%emt 0:01:20]} Qh3 {[%emt 0:00:33]} 22. Rfe1 {[%emt 0:00:10]} Qxh2+ {[%emt 0:01:19]} 23. Kf1 {[%emt 0:00:05]} Qh3+ {[%emt 0:02:50]} 24. Bg2 {[%emt 0:01:21]} Qg4 {[%emt 0:01:41]} 25. Bf3 {[%emt 0:08:00]} Qh3+ {[%emt 0:01:54]} 26. Bg2 {[%emt 0:00:30]} Qg4 {[%emt 0:04:44]} 27. Bf3 {[%emt 0:00:22]} Qh3+ {[%emt 0:19:35]} 1/2-1/2